Cogmind - Beta 10.2 @@@ ROGUE MODE // 2021.12.20 @ 19:59:03 Player: SURFACESEEKER Result: Destroyed by DI-L6I(B) with Slug Cannon Performance ------------- Evolutions (4) 2000 Regions Visited (15) 3000 Robots Destroyed (135) 675 Value Destroyed (5391) 5391 Prototype IDs (44) 880 Alien Tech Used (1) 200 Bonus (1434) 1434 TOTAL SCORE: 13580 Bonus ------- High Alert Combat Kills 183 Follower Combat Kills 122 Entered Garrisons 200 Used RIF Installer 500 Aligned with FarCom 300 Met Data Miner 300 Friendly Fire -171 Cogmind --------- Core Integrity 0/850 Matter 275/300 Energy 100/100 System Corruption 0% Temperature Cool (0) Movement Core (1100) Ox21 Location -6/Zion Parts ------- > --- POWER (2) -------- (None) > --- PROPULSION (4) --- (None) > --- UTILITY (6) ------ High-capacity Storage Unit High-capacity Storage Unit Experimental Terrain Scanner Advanced Terrain Scan Processor Improved Weapon Cycler Experimental Hacking Suite > --- WEAPON (4) ------- (None) > --- INVENTORY (20) --- Improved Cooling System Improved Terrain Scanner Relay Coupler [Programmer] (82) Relay Coupler [Programmer] (82) Relay Coupler [Programmer] (71) System Backup Module Heavy Laser Flak Gun Gauss Cannon Magnetic Acceleration Cannon Guided EMP Blaster Guided EMP Blaster Axe Peak State ------------ > --- POWER ------------ Light Angular Momentum Engine Light Angular Momentum Engine > --- PROPULSION ------- Light Treads Medium Treads Medium Treads Improved Medium Treads > --- UTILITY ---------- Improved Cooling System High-capacity Storage Unit High-capacity Storage Unit Experimental Terrain Scanner Advanced Terrain Scan Processor Layered Medium Armor Plating > --- WEAPON ----------- AWS/Autocannon > --- INVENTORY -------- Triangulator Experimental Sensor Array Advanced Terrain Scan Processor Phase Shifter Improved Hardlight Generator Heavy Laser Gauss Rifle Advanced Assault Cannon Magnetic Acceleration Cannon Guided EMP Blaster Guided EMP Blaster Guided EMP Blaster Heavy Flail Scythe [Rating: 83] Favorites ----------- Power Light Angular Momentum Engine Engine Light Angular Momentum Engine Power Core Light Nuclear Core Propulsion Aluminum Leg Treads Light Treads Leg Aluminum Leg Wheel Compact Wheel Utility High-capacity Storage Unit Device Experimental Terrain Scanner Storage High-capacity Storage Unit Processor Advanced Terrain Scan Processor Hackware Relay Coupler [Sentry] Protection Layered Medium Armor Plating Weapon Gauss Cannon Energy Gun Heavy Particle Gun Ballistic Gun Light Assault Rifle Ballistic Cannon Gauss Cannon Launcher Guided EMP Blaster Special Weapon Plasma Cutter Impact Weapon Hammer Slashing Weapon Axe Special Melee Weapon Datajack Build | -11 -10 -10 -10 -9 -8 -7 -7 -7 -7 -7 -6 -6 -6 -6 -6 ------- Run | Scr Mat Min Exi Min Mat Fac Gar Fac Low Dat Pro Fac Low Low Zio Slots Evolved 8 | . . . . . 4 2 . . . . . 2 . . . Power 1 | . . . . . 1 . . . . . . . . . . Propulsion 2 | . . . . . 1 1 . . . . . . . . . Utility 4 | . . . . . 2 1 . . . . . 1 . . . Weapon 1 | . . . . . . . . . . . . 1 . . . Parts Attached 199 | 7 1 3 1 1 38 2 12 40 3 . 10 59 13 2 7 Power 30 | 1 . 1 . . 4 . 3 6 1 . 1 10 1 . 2 Engine 20 | 1 . 1 . . 2 . 2 4 . . 1 6 1 . 2 Core 10 | . . . . . 2 . 1 2 1 . . 4 . . . Reactor . | . . . . . . . . . . . . . . . . Propulsion 45 | 2 . 1 . 1 12 . 3 12 1 . . 12 1 . . Treads 11 | 2 . 1 . 1 1 . . . . . . 5 1 . . Leg 33 | . . . . . 11 . 3 12 1 . . 6 . . . Wheel 1 | . . . . . . . . . . . . 1 . . . Hover . | . . . . . . . . . . . . . . . . Flight . | . . . . . . . . . . . . . . . . Utility 62 | 2 . 1 1 . 7 2 1 12 1 . 4 14 11 2 4 Device 34 | 1 . . . . 5 1 . 3 1 . 2 10 7 1 3 Storage 3 | . . 1 1 . 1 . . . . . . . . . . Processor 6 | 1 . . . . . 1 . . . . . 2 2 . . Hackware 5 | . . . . . . . . 3 . . . . 1 . 1 Protection 14 | . . . . . 1 . 1 6 . . 2 2 1 1 . Artifact . | . . . . . . . . . . . . . . . . Weapon 62 | 2 1 . . . 15 . 5 10 . . 5 23 . . 1 Energy Gun 17 | . . . . . 9 . 4 2 . . 1 1 . . . Energy Cannon . | . . . . . . . . . . . . . . . . Ballistic Gun 11 | 2 . . . . . . 1 5 . . 1 2 . . . Ballistic Cannon 19 | . 1 . . . 2 . . . . . 1 14 . . 1 Launcher 1 | . . . . . . . . . . . . 1 . . . Special Weapon 3 | . . . . . 2 . . 1 . . . . . . . Impact Weapon 1 | . . . . . 1 . . . . . . . . . . Slashing Weapon 7 | . . . . . 1 . . . . . 1 5 . . . Piercing Weapon . | . . . . . . . . . . . . . . . . Special Melee Weapon 3 | . . . . . . . . 2 . . 1 . . . . Unidentified Prototypes 7 | . . . . . 4 . . . . . . 1 1 . 1 Parts Lost 68 | . . 2 . . 5 . 4 21 . . 3 19 2 . 12 Power 20 | . . 1 . . 3 . 1 6 . . . 5 1 . 3 Propulsion 21 | . . . . . . . 1 9 . . . 7 . . 4 Utility 17 | . . 1 . . 1 . 1 3 . . 1 6 1 . 3 Weapon 10 | . . . . . 1 . 1 3 . . 2 1 . . 2 Highest Loss Streak 10 | . . 1 . . 2 . 2 6 . . 3 10 2 . 4 Average Slot Usage (%) 92 | . 100 97 100 100 96 92 92 89 92 76 83 86 98 92 78 Engine 10 | . 14 12 14 14 9 7 6 5 7 7 7 9 12 12 10 Core 2 | . . . . . 6 7 6 4 7 7 7 2 . . . Treads 15 | . 28 28 28 28 4 . . . . . . 16 25 25 16 Leg 10 | . . . . . 22 23 24 26 30 30 30 7 . . . Device 9 | . 14 1 . . 8 7 4 5 5 7 6 10 17 14 12 Storage 13 | . . 11 14 14 17 15 15 15 15 15 15 13 12 12 12 Processor 7 | . 14 14 14 14 9 15 15 3 . . . 7 4 6 6 Hackware 1 | . . . . . . . . 1 7 7 7 1 . . 4 Protection 2 | . . . . . . . 1 10 1 . 1 3 3 3 . Energy Gun 2 | . . . . . 10 15 14 5 . . 1 . . . . Ballistic Gun 5 | . 27 14 14 14 1 . . 7 15 . . . . . . Ballistic Cannon 6 | . . 14 14 14 2 . . . . . 1 6 12 12 10 Slashing Weapon 2 | . . . . . . . . . . . 1 1 6 6 4 Naked Turns . | . . . . . . . . . . . . . . . . Heaviest Build 158 | 8 10 25 41 41 84 84 88 102 99 93 94 153 118 109 158 Greatest Support 106 | 40 40 40 40 40 60 47 62 57 45 45 45 106 106 106 106 Greatest Overweight (x) 52 | . . . 1 1 7 1 2 10 2 2 2 33 1 1 52 Average Overweight (x) . | . . . . 1 1 1 1 1 1 2 1 1 . . 1 Largest Inventory Capacity 20 | 4 4 10 12 12 20 20 20 20 20 20 20 20 20 20 20 Average Capacity 17 | 4 4 8 11 12 19 20 20 20 20 20 20 20 20 20 20 Most Carried 20 | 4 4 8 11 12 20 19 20 20 19 20 20 20 20 20 20 Average Carried 15 | 1 3 6 10 11 15 18 18 17 17 20 19 16 18 19 18 Final Capacity 20 | 4 4 10 12 12 20 20 20 20 20 20 20 20 20 20 20 Final Carried 20 | 4 4 8 11 12 20 18 20 19 19 20 19 17 20 20 15 Class Distribution -------------------- 34% | Scavenger-Mutant 21% | Mutant 20% | Scavenger-Assassin 6% | Scavenger-Skirmisher 5% | Hauler-Assassin 5% | Hauler-Skirmisher 5% | Hauler-Mutant Dominant Class ---------------- Mutant | -10/Materials Mutant | -10/Mines Mutant | -10/Exiles Mutant | -9/Mines Scavenger-Mutant | -8/Materials Scavenger-Mutant | -7/Factory Scavenger-Mutant | -7/Garrison Scavenger-Mutant | -7/Factory Scavenger-Mutant | -7/Lower Caves Scavenger-Mutant | -7/Data Miner Scavenger-Mutant | -6/Proximity Caves Hauler-Skirmisher | -6/Factory Scavenger-Assassin | -6/Lower Caves Scavenger-Assassin | -6/Lower Caves Scavenger-Assassin | -6/Zion Resources | -11 -10 -10 -10 -9 -8 -7 -7 -7 -7 -7 -6 -6 -6 -6 -6 ----------- Run | Scr Mat Min Exi Min Mat Fac Gar Fac Low Dat Pro Fac Low Low Zio Matter Collected 3886 | 296 46 151 . 85 552 . 100 963 44 . 270 903 384 51 41 Remotely . | . . . . . . . . . . . . . . . . Salvage Created 4921 | 167 236 213 . 110 1271 . 252 1452 . . 154 726 307 . 33 Parts 253 | 12 16 15 . 1 62 . 11 63 . . 14 36 19 . 4 Haulers Intercepted 3 | . 1 . . . 2 . . . . . . . . . . Recyclers Shooed 8 | . 1 2 . 1 1 . . . . . . 3 . . . Parts Field Recycled . | . . . . . . . . . . . . . . . . Retrieved Matter . | . . . . . . . . . . . . . . . . Parts Self-Destructed 34 | . . . . . . . . . . . 17 . 17 . . Prevented . | . . . . . . . . . . . . . . . . Kills | -11 -10 -10 -10 -9 -8 -7 -7 -7 -7 -7 -6 -6 -6 -6 -6 ------- Run | Scr Mat Min Exi Min Mat Fac Gar Fac Low Dat Pro Fac Low Low Zio Combat Hostiles Destroyed 102 | . 6 7 . 1 19 . 4 24 . . 7 23 9 . 2 Melee 3 | . . . . . 2 . . . . . . 1 . . . Guns 53 | . 6 3 . . 13 . 2 23 . . 4 2 . . . Cannons 40 | . . 4 . 1 4 . . . . . 3 17 9 . 2 AOE 4 | . . . . . . . . 1 . . . 3 . . . Classes Destroyed 16 | 2 3 1 . . 3 . 1 4 . . . . . . 2 Worker 7 | . . . . . 2 . . 4 . . . 1 . . . Builder 5 | . . 1 . . 1 . . 3 . . . . . . . Tunneler 6 | 4 . 1 . . . . . . . . . 1 . . . Hauler 3 | . 1 . . . 2 . . . . . . . . . . Recycler 6 | 1 . . . 1 2 . . 1 . . . 1 . . . Operator 4 | . . . . . 3 . . . . . . 1 . . . Watcher 2 | . . . . . . . . 1 . . . 1 . . . Swarmer 23 | . 2 3 . . . . . 4 . . 7 3 4 . . Grunt 45 | . 4 4 . 1 16 . 2 11 . . . 7 . . . Brawler 3 | . . . . . . . . 3 . . . . . . . Duelist 4 | . . . . . . . 1 3 . . . . . . . Sentry 8 | . . . . . 3 . 1 1 . . . 2 1 . . Hunter 5 | . . . . . . . . 1 . . . 4 . . . Programmer 8 | . . . . . . . . 1 . . . 7 . . . Tinkerer 2 | . . . . . . . . . . . . . . . 2 Thug 1 | . . . . . . . . . . . . . 1 . . Savage 3 | . . . . . . . . . . . . . 3 . . Martyr 1 | . . . . . . . . . . . . . . . 1 Best Kill Streak 7 | 5 3 3 . 2 4 . 2 7 . . 4 6 4 . 3 Combat Bots Only 6 | . 2 3 . 1 3 . 2 4 . . 4 6 4 . 2 Max Kills in Single Turn 5 | 1 1 1 . 1 1 . 1 5 . . 2 4 1 . 1 Gunslinging . | . . . . . . . . . . . . . . . . Exploded 3 | . . . . . . . . 1 . . . 3 . . . Melee 1 | . . . . . 1 . . . . . . 1 . . . Uniques/NPCs Destroyed 1 | . . . . . . . . . . . . . . . 1 Imprinter (-6/Zion) Combat | -11 -10 -10 -10 -9 -8 -7 -7 -7 -7 -7 -6 -6 -6 -6 -6 -------- Run | Scr Mat Min Exi Min Mat Fac Gar Fac Low Dat Pro Fac Low Low Zio Damage Taken 11894 | . 298 214 . 145 1511 . 451 3469 . . 482 3106 820 . 1398 Core 1731 | . 44 36 . 12 148 . 83 486 . . 54 369 191 . 308 Absorbed by Shields 44 | . . . . . . . . . . . . . 32 . 12 Core Remaining (%) 61 | 100 . . . 63 73 . . . . . 11 . . . . Volleys Fired 349 | 13 23 25 . 13 78 . 25 95 . . 15 41 17 2 2 Largest 3 | 2 2 2 . 2 2 . 2 2 . . 2 3 2 1 2 Hottest 149 | 40 40 55 . 55 126 . 90 100 . . 99 149 96 48 96 Shots Fired 719 | 26 46 50 . 26 141 . 40 176 . . 25 132 36 2 19 Gun 475 | 26 46 25 . 13 109 . 40 176 . . 17 23 . . . Cannon 235 | . . 25 . 13 26 . . . . . 8 106 36 2 19 Launcher 3 | . . . . . . . . . . . . 3 . . . Special 6 | . . . . . 6 . . . . . . . . . . Kinetic 508 | 26 46 50 . 26 26 . 2 133 . . 13 129 36 2 19 Thermal 152 | . . . . . 101 . 7 32 . . 12 . . . . Explosive . | . . . . . . . . . . . . . . . . Electromagnetic 59 | . . . . . 14 . 31 11 . . . 3 . . . Robot Hit Streak 27 | 7 12 9 . 4 27 . 16 15 . . 6 15 16 . 8 Robot Miss Streak 10 | 1 2 5 . 2 2 . 2 7 . . 6 10 4 . 1 Penetration Max . | . . . . . . . . . . . . . . . . Secondary Targets 5 | . . . . . 1 . . 4 . . . . . . . Max Gunslinging Chain 1 | . . . . . 1 . . 1 . . . . . . . Autonomous 73 | . . . . . . . . . . . . 58 . . 15 Shots Hit Robots 562 | 19 33 30 . 15 130 . 28 151 . . 18 100 21 . 17 Core Hits 330 | 9 15 14 . 4 55 . 12 141 . . 20 42 13 . 5 Critical Hits 9 | . . . . 2 . . 1 . . . . 3 1 . 2 Critical Kills 4 | . . . . 1 . . 1 . . . . 1 1 . . Critical Parts Destroyed 4 | . . . . 1 . . . . . . . 2 . . 1 Melee Attacks 48 | . . . . . 24 . . 6 . . 4 13 1 . . Impact 13 | . . . . . 13 . . . . . . . . . . Slashing 29 | . . . . . 11 . . . . . 4 13 1 . . Piercing . | . . . . . . . . . . . . . . . . Sneak Attacks 1 | . . . . . . . . 1 . . . . . . . Combat Hostiles 1 | . . . . . . . . 1 . . . . . . . Follow-up Attacks . | . . . . . . . . . . . . . . . . Damage Inflicted 15571 | 172 250 413 . 173 2359 . 432 3413 . . 235 6431 598 . 1095 Guns 5598 | 172 250 126 . 65 1336 . 379 2692 . . 156 422 . . . Cannons 7699 | . . 285 . 105 374 . . . . . 79 5163 598 . 1095 Explosions 1558 | . . . . . 82 . 53 712 . . . 711 . . . Melee 499 | . . . . . 499 . . . . . . . . . . Ramming 153 | . . 2 . 3 4 . . 9 . . . 135 . . . Kinetic 10933 | 172 250 411 . 170 374 . . 2120 . . 158 5585 598 . 1095 Thermal 2673 | . . . . . 1298 . 53 1063 . . 77 182 . . . Explosive 536 | . . . . . . . . 56 . . . 480 . . . Electromagnetic 777 | . . . . . 184 . 379 165 . . . 49 . . . Impact 222 | . . . . . 222 . . . . . . . . . . Slashing 277 | . . . . . 277 . . . . . . . . . . Piercing . | . . . . . . . . . . . . . . . . Highest Corruption 5 | . . . . . 2 . . 4 4 4 4 3 5 . . Average Corruption 2 | . . . . . 2 . . 4 4 4 4 1 2 . . Corruption Purged 8 | . . . . . . . . . . . . . 8 . . Effects 128 | . . . . . 16 . . 18 20 5 28 20 21 . . Message Errors 30 | . . . . . 3 . . 1 5 1 9 6 5 . . Matter Fused 29 | . . . . . . . . 6 7 2 8 1 5 . . Heat Flow Errors 14 | . . . . . 2 . . 1 1 1 4 3 2 . . Energy Discharges 29 | . . . . . 6 . . 4 5 . 5 6 3 . . Data Loss (minor) 16 | . . . . . 2 . . 2 2 1 2 4 3 . . Misfires 2 | . . . . . . . . . . . . . 2 . . Targeting Errors 6 | . . . . . 2 . . 3 . . . . 1 . . Weapon Failures 2 | . . . . . 1 . . 1 . . . . . . . Overload Shots . | . . . . . . . . . . . . . . . . Overflow Damage 1564 | . . . . . 38 . 29 88 . . . 1234 . . 175 Projectiles 1254 | . . . . . . . . . . . . 1079 . . 175 Explosions 259 | . . . . . . . 29 88 . . . 142 . . . Melee 51 | . . . . . 38 . . . . . . 13 . . . Knockbacks 52 | . . 4 . . 8 . . 1 . . 4 28 3 . 4 Impact 4 | . . . . . 1 . . 1 . . . 2 . . . Kinetic 47 | . . 4 . . 7 . . . . . 4 25 3 . 4 Secondary 1 | . . . . . . . . . . . . 1 . . . Self-Inflicted Damage 149 | . . . . . . . 58 3 . . . 88 . . . Shots 3 | . . . . . . . 1 . . . . 2 . . . Rammed 17 | . 2 2 . 1 . . . 1 . . . 11 . . . Targets Rammed 20 | . 2 2 . 1 1 . . 2 . . . 12 . . . Kicked 2 | . . . . . 1 . . 1 . . . . . . . Crushed 1 | . . . . . . . . . . . . 1 . . . Highest Temperature 529 | . 12 52 . 68 529 . 112 387 271 183 250 435 188 50 12 Average Temperature 116 | . 7 18 . 41 146 . 52 178 137 94 98 178 78 27 7 Received Heat Transfer 2264 | . 54 78 . 72 810 . 66 660 . . . 414 110 . . Effects 19 | . . . . . 10 . . 4 . . . 5 . . . Shutdowns 9 | . . . . . 5 . . 3 . . . 1 . . . Energy Bleed 2 | . . . . . 1 . . 1 . . . . . . . Matter Decay 4 | . . . . . 2 . . . . . . 2 . . . Damage (minor) 3 | . . . . . 1 . . . . . . 2 . . . Damage (major) 1 | . . . . . 1 . . . . . . . . . . Siege Activations . | . . . . . . . . . . . . . . . . Robots Corrupted 3 | . . . . . 1 . 2 . . . . . . . . Combat Hostiles 2 | . . . . . . . 2 . . . . . . . . Parts Fried 6 | . . . . . 1 . 4 1 . . . . . . . Impact Corruptions 2 | . . . . . . . . . . . . 2 . . . Robots Melted . | . . . . . . . . . . . . . . . . Combat Hostiles . | . . . . . . . . . . . . . . . . Parts Melted 6 | . . . . . 6 . . . . . . . . . . Heat Transferred 4226 | . . . . . 2714 . 50 1214 . . 148 100 . . . Parts Sabotaged . | . . . . . . . . . . . . . . . . Parts Stolen . | . . . . . . . . . . . . . . . . Parts Stripped . | . . . . . . . . . . . . . . . . Power Chain Reactions 2 | . . . . . 1 . 1 . . . . . . . . Missiles Intercepted . | . . . . . . . . . . . . . . . . Alert | -11 -10 -10 -10 -9 -8 -7 -7 -7 -7 -7 -6 -6 -6 -6 -6 ------- Run | Scr Mat Min Exi Min Mat Fac Gar Fac Low Dat Pro Fac Low Low Zio Peak Influence 685 | 25 177 149 . 25 500 241 426 685 . . . 291 . . . Initial 227 | . 16 69 . . . 227 168 223 . . . 47 . . . Average 165 | 10 34 63 . 14 158 233 278 388 . . . 131 . . . Maximum Alert Level 2 | . . . . . 2 1 2 2 . . . 1 . . . Low Security (%) 70 | 100 100 100 . 100 72 . 19 28 . . . 80 . . . Level 1 17 | . . . . . 11 100 69 21 . . . 19 . . . Level 2 12 | . . . . . 16 . 10 50 . . . . . . . Level 3 . | . . . . . . . . . . . . . . . . Level 4 . | . . . . . . . . . . . . . . . . Level 5 . | . . . . . . . . . . . . . . . . High Security . | . . . . . . . . . . . . . . . . Max Security . | . . . . . . . . . . . . . . . . Squads Dispatched 30 | . 3 . . . 4 . . 9 . . . 14 . . . Investigation 8 | . 3 . . . . . . 2 . . . 3 . . . Extermination 8 | . . . . . . . . 1 . . . 7 . . . Reinforcement 7 | . . . . . 3 . . 3 . . . 1 . . . Assault 2 | . . . . . . . . 2 . . . . . . . Garrison 5 | . . . . . 1 . . 1 . . . 3 . . . Intercept . | . . . . . . . . . . . . . . . . Construction Impeded 2 | . . . . . . . . 1 . . . 1 . . . Haulers Reinforced 1 | . . . . . . . . 1 . . . . . . . Stealth | -11 -10 -10 -10 -9 -8 -7 -7 -7 -7 -7 -6 -6 -6 -6 -6 --------- Run | Scr Mat Min Exi Min Mat Fac Gar Fac Low Dat Pro Fac Low Low Zio Distress Signals 10 | . . . . . 6 . . 3 . . . 1 . . . Communications Jammed . | . . . . . . . . . . . . . . . . Distress Signals . | . . . . . . . . . . . . . . . . Times Spotted 179 | . 11 9 . 2 45 . 5 47 . . 9 36 8 . 7 Peak Tracking Total 6 | . 4 3 . 2 4 . 4 6 . . 4 5 4 . 4 Tactical Retreats 17 | . 1 2 . . 7 . 2 1 . . 1 1 . . 2 Traps | -11 -10 -10 -10 -9 -8 -7 -7 -7 -7 -7 -6 -6 -6 -6 -6 ------- Run | Scr Mat Min Exi Min Mat Fac Gar Fac Low Dat Pro Fac Low Low Zio Traps Triggered 4 | . 1 . . . 1 . 1 1 . . . . . . . Indirectly . | . . . . . . . . . . . . . . . . Trap Hack Attempts . | . . . . . . . . . . . . . . . . Triggered . | . . . . . . . . . . . . . . . . Disarmed . | . . . . . . . . . . . . . . . . Reprogrammed . | . . . . . . . . . . . . . . . . Reused . | . . . . . . . . . . . . . . . . Traps Extracted . | . . . . . . . . . . . . . . . . Installed . | . . . . . . . . . . . . . . . . Triggered 2 | . . . . . . . . . 1 . 1 . . . . Machines | -11 -10 -10 -10 -9 -8 -7 -7 -7 -7 -7 -6 -6 -6 -6 -6 ---------- Run | Scr Mat Min Exi Min Mat Fac Gar Fac Low Dat Pro Fac Low Low Zio Machines Disabled 31 | . . . . . 2 . 3 21 . . . 5 . . . Max in Single Turn 20 | . . . . . 1 . 2 20 . . . 4 . . . Garrison Access 1 | . . . . . . . . 1 . . . . . . . Garrison Relay 1 | . . . . . . . 1 . . . . . . . . Phase Generator 1 | . . . . . . . 1 . . . . . . . . Machines Sabotaged . | . . . . . . . . . . . . . . . . Garrisons Compromised . | . . . . . . . . . . . . . . . . Overloaded Fab Kills . | . . . . . . . . . . . . . . . . Fab Network Shutdowns . | . . . . . . . . . . . . . . . . Hacking | -11 -10 -10 -10 -9 -8 -7 -7 -7 -7 -7 -6 -6 -6 -6 -6 --------- Run | Scr Mat Min Exi Min Mat Fac Gar Fac Low Dat Pro Fac Low Low Zio Machines Accessed 36 | . 5 1 2 . 7 2 . 4 . 4 . 8 1 2 . Terminals 14 | . 4 . . . 5 1 . 1 . . . 3 . . . Fabricators 4 | . . . . . . . . 2 . . . 2 . . . Repair Stations 3 | . . . . . 1 . . . . . . 2 . . . Recycling Units 2 | . 1 . . . . . . . . . . 1 . . . Scanalyzers 2 | . . . . . 1 . . 1 . . . . . . . Garrison Access 1 | . . . . . . 1 . . . . . . . . . Total Hacks 126 | . 19 1 17 . 20 4 . 14 . 27 . 19 1 4 . Successful 99 | . 13 1 17 . 15 2 . 7 . 27 . 12 1 4 . Failed 27 | . 6 . . . 5 2 . 7 . . . 7 . . . Catastrophic 1 | . . . . . . . . . . . . 1 . . . Database Lockouts . | . . . . . . . . . . . . . . . . Manual 48 | . 11 . 1 . 13 2 . 5 . 1 . 12 1 1 1 Terminals 41 | . 16 . . . 13 2 . 4 . . . 6 . . . Fabricators 11 | . . . . . . . . 7 . . . 4 . . . Repair Stations 7 | . . . . . 2 . . . . . . 5 . . . Recycling Units 7 | . 3 . . . . . . . . . . 4 . . . Scanalyzers 8 | . . . . . 5 . . 3 . . . . . . . Garrison Access 2 | . . . . . . 2 . . . . . . . . . Terminal Hacks 54 | . 4 1 17 . . . . . . 27 . . 1 4 . Record 31 | . 1 . 16 . . . . . . 11 . . . 3 . Part Schematic 8 | . . . . . . . . . . 8 . . . . . Robot Schematic 5 | . . . . . . . . . . 5 . . . . . Prototype ID Bank 3 | . . . . . . . . . . 3 . . . . . Open Door 3 | . . 1 . . . . . . . . . . 1 1 . Branch Access Points 1 | . 1 . . . . . . . . . . . . . . Dispatch Records 1 | . 1 . . . . . . . . . . . . . . Zone Layout 1 | . 1 . . . . . . . . . . . . . . EX-Prototype ID Bank 1 | . . . 1 . . . . . . . . . . . . Fabricator Hacks 5 | . . . . . . . . 4 . . . 1 . . . Load Schematic 2 | . . . . . . . . 1 . . . 1 . . . Build 3 | . . . . . . . . 3 . . . . . . . Repair Station Hacks 5 | . . . . . 1 . . . . . . 4 . . . Scan Component 2 | . . . . . . . . . . . . 2 . . . Repair 2 | . . . . . . . . . . . . 2 . . . Refit 1 | . . . . . 1 . . . . . . . . . . Recycling Unit Hacks 4 | . . . . . . . . . . . . 4 . . . Recycle Component 1 | . . . . . . . . . . . . 1 . . . Process 1 | . . . . . . . . . . . . 1 . . . Retrieve Matter 1 | . . . . . . . . . . . . 1 . . . Retrieve Components 1 | . . . . . . . . . . . . 1 . . . Scanalyzer 6 | . . . . . 5 . . 1 . . . . . . . Insert Component 4 | . . . . . 3 . . 1 . . . . . . . Analyze 2 | . . . . . 2 . . . . . . . . . . Garrison Access Hacks 1 | . . . . . . 1 . . . . . . . . . Unlock Access 1 | . . . . . . 1 . . . . . . . . . Unauthorized Hacks 24 | . 9 . . . 9 1 . 2 . . . 3 . . . Terminals 21 | . 8 . . . 9 1 . 1 . . . 2 . . . Track 8 | . 3 . . . 5 . . . . . . . . . . Assimilate 2 | . . . . . . . . 1 . . . 1 . . . Botnet 9 | . 4 . . . 3 1 . . . . . 1 . . . Operators 2 | . 1 . . . 1 . . . . . . . . . . Fabricators 2 | . . . . . . . . 1 . . . 1 . . . Prioritize 2 | . . . . . . . . 1 . . . 1 . . . Repair Stations . | . . . . . . . . . . . . . . . . Recycling Units 1 | . 1 . . . . . . . . . . . . . . Tunnel 1 | . 1 . . . . . . . . . . . . . . Scanalyzers . | . . . . . . . . . . . . . . . . Garrison Access . | . . . . . . . . . . . . . . . . Data Cores Recovered 1 | . . . . . 1 . . . . . . . . . . Used . | . . . . . . . . . . . . . . . . Hacking Detections 22 | . 3 . . . 5 1 . 4 . . . 9 . . . Full Trace Events 7 | . 1 . . . 1 . . 2 . . . 3 . . . Feedback Events . | . . . . . . . . . . . . . . . . Feedback Blocked . | . . . . . . . . . . . . . . . . Robot Schematics Acquired 5 | . . . . . . . . . . 5 . . . . . Robots Built 6 | . . . . . . . . 6 . . . . . . . Matter 504 | . . . . . . . . 504 . . . . . . . Time 268 | . . . . . . . . 268 . . . . . . . Total Robot Build Rating 24 | . . . . . . . . 24 . . . . . . . Part Schematics Acquired 10 | . . . . . 2 . . . . 8 . . . . . Parts Built 2 | . . . . . . . . 2 . . . . . . . Matter 124 | . . . . . . . . 124 . . . . . . . Time 31 | . . . . . . . . 31 . . . . . . . Total Part Build Rating 4 | . . . . . . . . 4 . . . . . . . Parts Repaired 2 | . . . . . . . . . . . . 2 . . . Time 99 | . . . . . . . . . . . . 99 . . . Parts Recycled 1 | . . . . . . . . . . . . 1 . . . Recycled Matter 2 | . . . . . . . . . . . . 2 . . . Retrieved Matter . | . . . . . . . . . . . . . . . . Retrieved Components 9 | . . . . . . . . . . . . 9 . . . Parts Scanalyzed 3 | . . . . . 2 . . 1 . . . . . . . Part Schematics Acquired 2 | . . . . . 2 . . . . . . . . . . Parts Damaged . | . . . . . . . . . . . . . . . . Bothacking | -11 -10 -10 -10 -9 -8 -7 -7 -7 -7 -7 -6 -6 -6 -6 -6 ------------ Run | Scr Mat Min Exi Min Mat Fac Gar Fac Low Dat Pro Fac Low Low Zio Used RIF Installer 1 | . . . . . . . 1 . . . . . . . . Robots Hacked 4 | . . . . . . . . 4 . . . . . . . Non-combat . | . . . . . . . . . . . . . . . . Combat 4 | . . . . . . . . 4 . . . . . . . Robot Hacks Applied 6 | . . . . . . . . 6 . . . . . . . parse_system 1 | . . . . . . . . 1 . . . . . . . wipe_record 1 | . . . . . . . . 1 . . . . . . . streamctrl_high 1 | . . . . . . . . 1 . . . . . . . formatsys_high 3 | . . . . . . . . 3 . . . . . . . Relay Couplers Released 7 | . . . . . . . 5 2 . . . . . . . Machine Destruction 7 | . . . . . . . 5 2 . . . . . . . Attached 3 | . . . . . . . . 3 . . . . . . . Robots Rewired . | . . . . . . . . . . . . . . . . Allies Hacked . | . . . . . . . . . . . . . . . . Hacks Repelled . | . . . . . . . . . . . . . . . . Allies | -11 -10 -10 -10 -9 -8 -7 -7 -7 -7 -7 -6 -6 -6 -6 -6 -------- Run | Scr Mat Min Exi Min Mat Fac Gar Fac Low Dat Pro Fac Low Low Zio Total Allies 16 | . . 3 . . . . . 11 . . 1 1 . . . Largest Group 4 | . . 2 2 . . . . 4 . . 1 1 . . . Highest-Rated Group 94 | . . 46 46 . . . . 86 . . 94 10 . . . Highest-Rated Ally 94 | . . 31 31 . . . . 32 . . 94 10 . . . Total Orders 27 | . . . . . . . . 3 12 . 9 3 . . . STAY 1 | . . . . . . . . 1 . . . . . . . ROAM 3 | . . . . . . . . . . . . 3 . . . FOLLOW 1 | . . . . . . . . 1 . . . . . . . GUARD 1 | . . . . . . . . 1 . . . . . . . EXPLORE 7 | . . . . . . . . . 4 . 3 . . . . RETURN 14 | . . . . . . . . . 8 . 6 . . . . Ally Attacks 82 | . . 5 . . . . . 71 . . 6 . . . . Total Damage 1406 | . . 21 . . . . . 1234 . . 151 . . . . Kills 6 | . . . . . . . . 6 . . . . . . . Allies Corrupted . | . . . . . . . . . . . . . . . . Allies Melted . | . . . . . . . . . . . . . . . . Intel | -11 -10 -10 -10 -9 -8 -7 -7 -7 -7 -7 -6 -6 -6 -6 -6 ------- Run | Scr Mat Min Exi Min Mat Fac Gar Fac Low Dat Pro Fac Low Low Zio Robot Analysis Total . | . . . . . . . . . . . . . . . . Derelict Logs Recovered 9 | . . 3 . 1 . . . . 1 . 1 . 1 1 1 Drone Launches 30 | . . . . . . . . . 12 . 9 9 . . . Drone Recoveries 14 | . . . . . . . . . 8 . 6 . . . . Exploration | -11 -10 -10 -10 -9 -8 -7 -7 -7 -7 -7 -6 -6 -6 -6 -6 ------------- Run | Scr Mat Min Exi Min Mat Fac Gar Fac Low Dat Pro Fac Low Low Zio Turns Passed 23410 | 191 1550 1102 1693 452 2783 80 967 1904 874 325 1660 3347 2870 2612 1000 Spaces Moved 9753 | 101 379 617 914 228 846 50 403 731 446 181 874 1393 976 1167 447 Core 39 | 19 . . . . . . . . . . . 4 . . 16 Treads 6037 | 82 379 617 914 228 203 . . . . . . 1040 976 1167 431 Legs 3671 | . . . . . 643 50 403 731 446 181 874 343 . . . Wheels 6 | . . . . . . . . . . . . 6 . . . Hover . | . . . . . . . . . . . . . . . . Flight . | . . . . . . . . . . . . . . . . Fastest Speed 50 | 50 160 160 160 180 153 153 152 150 150 180 150 150 160 160 160 Average Speed 171 | 139 160 160 171 180 174 153 153 169 169 180 167 181 166 167 214 Slowest Speed 2650 | 160 160 160 180 180 330 153 185 420 180 180 180 1700 180 180 2650 Overloaded Moves . | . . . . . . . . . . . . . . . . Propulsion Burnouts . | . . . . . . . . . . . . . . . . Robots Hopped . | . . . . . . . . . . . . . . . . Cave-ins Triggered . | . . . . . . . . . . . . . . . . Exploration Rate (%) 49 | 6 31 82 90 56 34 1 52 10 77 74 72 38 81 81 13 Regions Visited 15 Branch Regions 9 Pre-discovered Areas 5 | . 1 1 . 1 . . . . 1 1 . . . . . Known Exits Taken 2 | . 1 . . . . 1 . . . . . . . . . Unknown Exits Taken 12 | 1 . 1 1 1 1 . . 1 1 1 1 1 1 1 . Scrap Searched 13 | . . 3 . . . . . . 2 . 2 . 3 2 1 Spaces Dug 19 | . . . . . 1 . . . . . 4 13 1 . . Terrain Destroyed 235 | . . . . . 8 . 85 32 . . 4 92 13 . 1 Melee 19 | . . . . . 1 . . . . . 4 13 1 . . Projectile 31 | . . . . . . . . . . . . 18 12 . 1 AOE 185 | . . . . . 7 . 85 32 . . . 61 . . . Terrain Rammed . | . . . . . . . . . . . . . . . . Walls Destroyed . | . . . . . . . . . . . . . . . . Machines Disabled . | . . . . . . . . . . . . . . . . Actions | -11 -10 -10 -10 -9 -8 -7 -7 -7 -7 -7 -6 -6 -6 -6 -6 --------- Run | Scr Mat Min Exi Min Mat Fac Gar Fac Low Dat Pro Fac Low Low Zio Total 15734 | 131 1286 686 1037 245 1967 54 713 1203 567 182 1041 2122 2185 1818 497 Wait 5101 | . 877 33 119 2 917 3 254 292 115 . 133 515 1170 646 25 Move 9737 | 100 378 616 913 227 845 49 401 730 445 180 873 1392 975 1166 447 Hop . | . . . . . . . . . . . . . . . . Pick Up 167 | 11 2 6 2 1 38 . 12 28 3 . 4 46 6 1 7 Fast Attach 7 | . 1 . . . 1 . . 2 . . . . 1 1 1 Attach 124 | 7 . 3 . . 15 2 7 22 3 . 6 50 3 1 5 Detach 26 | . . . . . 2 . . . 1 1 1 20 . . 1 Swap 69 | . . . 1 1 22 . 5 16 . . 4 9 10 . 1 Drop 78 | . 3 1 2 . 24 . 4 7 . 1 1 24 2 1 8 Fire 349 | 13 23 25 . 13 78 . 25 95 . . 15 41 17 2 2 Melee 48 | . . . . . 24 . . 6 . . 4 13 1 . . Ram 1 | . . . . . . . . . . . . 1 . . . Kick 3 | . . . . . 1 . . 2 . . . . . . . Crush 16 | . 2 2 . 1 . . . . . . . 11 . . . Escape Stasis 5 | . . . . . . . 5 . . . . . . . . Rewire 3 | . . . . . . . . 3 . . . . . . . Trap . | . . . . . . . . . . . . . . . . Miscellaneous . | . . . . . . . . . . . . . . . . Route ------- -11/Scrapyard -10/Materials (discovered 2 exits: [Mat] / *Min) -10/Mines -10/Exiles -9/Mines (discovered 2 exits: *Mat x2) -8/Materials -7/Factory -7/Garrison -7/Factory -7/Lower Caves -7/Data Miner -6/Proximity Caves -6/Factory (discovered 2 exits: [*Fac] / *Low) -6/Lower Caves -6/Lower Caves (discovered 2 exits: [*Fac] / *Zio) -6/Zion (discovered 1 exit: [*Pro]) History --------- Turn | Location | Event 5 | -11/Scrapyard | Discovered new exit (range 15) 192 | -11/Scrapyard | Entered Materials 307 | -10/Materials | Build established: Mutant 1637 | -10/Materials | Identified exit to Mines 1706 | -10/Materials | Discovered new exit (range 16) 1742 | -10/Materials | Entered Mines 1745 | -10/Mines | Received a Mining Laser from a helpful Derelict 1945 | -10/Mines | Found the Drone Emporium 1956 | -10/Mines | Found Prototype Device 1990 | -10/Mines | Learned Materials security intel 2423 | -10/Mines | Found a damaged Exp. Sensor Array with a note attached 2426 | -10/Mines | Found Prototype Device 2503 | -10/Mines | Received a Rocket Launcher from a helpful Derelict 2825 | -10/Mines | Deemed a non-threat by the Exiles lab entrance 2826 | -10/Mines | Discovered new exit (range 5) 2844 | -10/Mines | Entered Exiles 2844 | -10/Exiles | Accompanied by 2 allies 2874 | -10/Exiles | Led the pair of lost Derelicts to a safe place 2903 | -10/Exiles | Met 8R-AWN 3051 | -10/Exiles | Met EX-HEX 3175 | -10/Exiles | Met EX-BIN 3229 | -10/Exiles | Aligned with FarCom system 3231 | -10/Exiles | Given EX-Vault access code 3285 | -10/Exiles | Opened EX-Vault 3300 | -10/Exiles | Found AWS/Autocannon 3340 | -10/Exiles | Warned to stay clear of 0b10 Research branches 3397 | -10/Exiles | Met EX-DEC 3655 | -10/Exiles | Discovered new exit (range 15) 3825 | -10/Exiles | Visited The Gauntlet 4537 | -10/Exiles | Left Exiles lab with AWS/Autocannon 4537 | -10/Exiles | Entered Mines 4610 | -9/Mines | Learned location of Zion (-6) 4762 | -9/Mines | Discovered new exit (range 8) 4942 | -9/Mines | Discovered new exit (range 12) 4989 | -9/Mines | Entered Materials 4989 | -8/Materials | Evolved 4 slots: Power x1, Propulsion x1, Utility x2 6182 | -8/Materials | Identified Exp. Sensor Array 6182 | -8/Materials | Identified Decoy Drone Bay 6732 | -8/Materials | Build established: Scavenger-Mutant 7724 | -8/Materials | Discovered new exit (range 7) 7755 | -8/Materials | Garrison activated, responded to threat 7772 | -8/Materials | Entered Factory 7772 | -7/Factory | Evolved 2 slots: Propulsion x1, Utility x1 7842 | -7/Factory | Identified exit to Garrison 7852 | -7/Factory | Entered Garrison 7860 | -7/Garrison | Installed Relay Interface Framework 8043 | -7/Garrison | Phase Generator disabled 8140 | -7/Garrison | Triggered checkpoint 8715 | -7/Garrison | Garrison Relay disabled 8794 | -7/Garrison | Discovered new exit (range 14) 8819 | -7/Garrison | Entered Factory 8995 | -7/Factory | Lost 3 parts (1p2n) 9532 | -7/Factory | Lost 4 parts (1p1n1u1w) 9648 | -7/Factory | Fabricated Imp. Terrain Scanner (x2) 9730 | -7/Factory | P-60 Hacker assimilated allied Trooper 4b 9744 | -7/Factory | Garrison activated, responded to threat 10019 | -7/Factory | First assault squad dispatched 10149 | -7/Factory | Core integrity fell below 50% 10216 | -7/Factory | Lost 6 parts (2p2n1u1w) 10251 | -7/Factory | Fabricated B-48 Gladiator (x3) 10272 | -7/Factory | Discovered new exit (range 12) 10532 | -7/Factory | Fabricated B-48 Gladiator? 10697 | -7/Factory | Core integrity fell below 20% 10723 | -7/Factory | Entered Lower Caves 11550 | -7/Lower Caves | A Derelict revealed a hidden shortcut to meet someone special 11561 | -7/Lower Caves | Encountered a Warlord checkpoint 11597 | -7/Lower Caves | Entered Data Miner 11598 | -7/Data Miner | Discovered new exit (range 6) 11633 | -7/Data Miner | Met Data Miner 11678 | -7/Data Miner | Learned location of Section 7 (-2) 11678 | -7/Data Miner | Acquired the access code to Warlord's prototype stash 11719 | -7/Data Miner | Received God Mode back door access code from Data Miner 11922 | -7/Data Miner | Entered Proximity Caves 12494 | -6/Proximity Caves | Spotted B-75 Beast 12496 | -6/Proximity Caves | Escorted by Enhanced Grunt 13089 | -6/Proximity Caves | Learned Factory stockpile data 13167 | -6/Proximity Caves | Discovered new exit (range 12) 13362 | -6/Proximity Caves | Lost 3 parts (1u2w) 13582 | -6/Proximity Caves | Entered Factory 13582 | -6/Factory | Evolved 2 slots: Utility x1, Weapon x1 14005 | -6/Factory | Repaired Carbon-fiber Leg 14368 | -6/Factory | Incoming investigation squad redirected 14392 | -6/Factory | Garrison activated, responded to threat 14424 | -6/Factory | Lost 7 parts (2p2n3u) 14594 | -6/Factory | Lost 10 parts (2p4n3u1w) 15392 | -6/Factory | Repaired Exp. Sensor Array 15600 | -6/Factory | Incoming investigation squad redirected 15878 | -6/Factory | Discovered new exit (range 8) 16003 | -6/Factory | Build established: Hauler-Skirmisher 16043 | -6/Factory | Found Exp. Terrain Scanner 16596 | -6/Factory | Discovered new exit (range 29) 16796 | -6/Factory | Build established: Hauler-Assassin 16929 | -6/Factory | Entered Lower Caves 17099 | -6/Lower Caves | Core integrity fell below 50% 17233 | -6/Lower Caves | Build established: Hauler-Mutant 17944 | -6/Lower Caves | Ambushed by wild Derelicts 18285 | -6/Lower Caves | Build established: Scavenger-Mutant 18728 | -6/Lower Caves | Encountered a Warlord checkpoint 18733 | -6/Lower Caves | Learned Factory emergency access door positions 19009 | -6/Lower Caves | Build established: Scavenger-Assassin 19345 | -6/Lower Caves | Discovered new exit (range 17) 19506 | -6/Lower Caves | Found Alien Artifact 19507 | -6/Lower Caves | Identified Core Expander 19507 | -6/Lower Caves | Installed Core Expander, added new Weapon slot 19799 | -6/Lower Caves | Entered another Lower Caves area 20454 | -6/Lower Caves | Encountered a Warlord checkpoint 20725 | -6/Lower Caves | Discovered new exit (range 25) 21115 | -6/Lower Caves | Learned Factory stockpile data 21650 | -6/Lower Caves | Discovered new exit (range 19) 22358 | -6/Lower Caves | Learned Research stockpile data 22358 | -6/Lower Caves | Learned Extension security intel 22358 | -6/Lower Caves | Learned Armory terminal intel 22411 | -6/Lower Caves | Entered Zion 22464 | -6/Zion | Learned Factory security intel 22483 | -6/Zion | Found Relay Coupler [Programmer] 22485 | -6/Zion | Found Relay Coupler [Programmer] 22490 | -6/Zion | Found Relay Coupler [Programmer] 22499 | -6/Zion | Found Relay Coupler [Programmer] 22573 | -6/Zion | Discovered new exit (range 14) 22594 | -6/Zion | Found Prototype Hackware 22595 | -6/Zion | Identified Exp. Hacking Suite 22657 | -6/Zion | Received a visual enhancement algorithm 22866 | -6/Zion | RIF detected upon attempting to enter Zion 22866 | -6/Zion | Attacked by Zionites 22866 | -6/Zion | Spotted RC-MET(B) 22866 | -6/Zion | Spotted DI-L6I(B) 23109 | -6/Zion | Build established: Hauler-Assassin 23132 | -6/Zion | Destroyed Imprinter 23152 | -6/Zion | Lost 4 parts (1p2n1u) 23152 | -6/Zion | Extracted access codes from Imprinter's data core 23224 | -6/Zion | Core integrity fell below 20% 23254 | -6/Zion | Lost 4 parts (1p1n1u1w) 23393 | -6/Zion | Lost 3 parts (1p1u1w) 23411 | -6/Zion | Destroyed by DI-L6I(B) with Slug Cannon Last Messages --------------- 23168_ P6-5AN(c) destroyed. 23170_ The unstable cave ceiling collapses. 23174_ Acquired Lgt. Angular Momentum Engine. 23200_ Imp. Medium Treads destroyed. 23213_ Imp. Hardlight Generator destroyed. 23218_ Destroyed Mak. Leg. 23218_ KA-ZK3(z) knocked back. 23220_ KA-ZK3(z) destroyed. 23222_ Critical hit. 23222_ AWS/Autocannon destroyed. 23223_ Lgt. Angular Momentum Engine destroyed. 23254_ Acquired 1 matter. 23264_ The unstable cave ceiling collapses. 23362_ Gauss Cannon destroyed. 23362_ Penetrated by Slug. 23362_ Lgt. Angular Momentum Engine destroyed. 23362_ Phase Shifter destroyed. 23385_ Slug penetrates Wall. 23411_ Penetrated by Slug. [Achievement: Tester] Map ----- +----------------------------------------------------+ | ????############################################## | | ???############################################### | | #??#?############?################################ | | ??################################################ | | ??################################################ | | ################################################## | | ################################################## | | ################################################## | | ################################################## | | ################################################## | | ################################################## | | ############################### ################# | | ############################# ################ | | ############################ < ################ | | ############################ ############### | | ?############################ ###!#"!######## | | ############################# ##!!!]!!####### | | ############################# ####! !!!####### | | ############################## ######!!"######## | | ############################## ######" # ######## | | ############################;# #####"# " "####### | | ###################""# ## ##### # ####### | | ###################" #### ####### | | ###################" #### ###### | | ###################" ## ##### ##### | | ###################""#X @ ### ##### ##### | | ###################### #### ### ##### | | ################## ##### ## ##### | | ################## #### ######### ### ###### | | ################## ###; !##### # ## ############# | | ################## ## ; " # #### ############# | | "################ ## ; #### # ## ############# | | """"""""""##### # ; ### ## ############# | | " "##### ;;;; ## #### ############## | | ####" ;; ## ### ################# | | ! ;; ##### ]# # ############# | | BB ;# ### ### ### ############# | | """;BB; ;" ##"""" ####### | | "" " "; # "" ""######## | | """""""""##### ##### # != !######## | | "################ ## # ] # ] [######## | | ################# #!% ######### | | ############### ! # ####### | | ############### ## # ####### | | ################### ###### ###### | | ################### ] ###### ###### | | ############################ ##### | | ############################# ##### | | ############################## ### ##### | | ################################## ##### | +----------------------------------------------------+ Best States ------------- Heat Dissipation 64 Energy Generation 31 Energy Capacity 470 Matter Stores 300 Matter Capacity 300 Sight Range 16 Robot Scan Range 30 Terrain Scan Range 30 Terrain Scan Density 210 ECM Strength 1 Corruption Prevention 12 Armor Coverage 375 Core Shielding 20 Weapon Cycling 20 Phase Shifting 5 Evasion (%) 45 Launcher Accuracy 20 Recoil Reduction 4 Offensive Hacking 16 Relay Coupler Types 26 Relay Coupler Value 1 Item Schematics ----------------- Imp. Terrain Scanner | -8/Materials | Scanalyzed Exp. Sensor Array | -8/Materials | Scanalyzed Combat Drone Bay | -7/Data Miner | Free Lgt. Regenerative Plating | -7/Data Miner | Free Exp. Cesium-ion Thruster | -7/Data Miner | Free Exp. Terrain Scanner | -7/Data Miner | Free Exp. Terrain Scan Processor | -7/Data Miner | Free Exp. Targeting Computer | -7/Data Miner | Free Cloaking Device | -7/Data Miner | Free Plasma Sword | -7/Data Miner | Free Robot Schematics ------------------ S-27 Virus | -7/Data Miner | Free G-50 Soldier | -7/Data Miner | Free X-72 Disruptor | -7/Data Miner | Free H-66 Slayer | -7/Data Miner | Free I-36 Angel | -7/Data Miner | Free Fabricated ------------ Imp. Terrain Scanner | x2 | -7/Factory B-48 Gladiator | x3 | -7/Factory | Preloaded B-48 Gladiator | x3 | -7/Factory | Preloaded Alien Tech Used ----------------- Core Expander Achievements -------------- Alien Tech Assimilation Complete It Was An Accident, I Swear Safety First Tank Tester Challenges ------------ None Game ------ Seed BombChromaticComputer Manual? 0 Play Time 03:14:44 Cumulative 106.6 hours Start 2021.12.20 @ 10:52:51 End 2021.12.20 @ 19:59:03 Sessions 7 Manual Loads 0 Difficulty Rogue Special Mode None Game No. 84 Rogue 84 Adventurer 0 Explorer 0 Win Type - Total 0 Types 0/0/0/0/0/0/0/0/0 Lore% 30 Gallery% 50 Achievement% 31 Wizard Run 0 Options --------- ASCII 0 Keyboard 0 Movement Arrows Keybinds 0 Fullscreen 1 Font 14/Terminus Map View 72x54 Tactical HUD 1 Map Filters NONE Filters NONE Steam 1 RUN: 821662de-7c5f-4e1e-b7c4-d1ac302b9ce5